fUSD/lending_fUSD_20250401
["ID","MTS","AMOUNT","RATE_DAILY","PERIOD"]
[356946618,1743479435274,-150.0,0.00049999,120]
[356946619,1743479435284,-240106.62992013,0.0005,2]
[356946620,1743479435294,-25000.0,0.0005,120]
[356946621,1743479435303,-327.0,0.0005,120]
[356946622,1743479435313,-970.31781526,0.0005,20]
[356946623,1743479435323,-1000.0,0.0005,120]
[356946624,1743479435332,-1072.0,0.0005,120]
[356946625,1743479435342,-160.0,0.0005,120]
[356946626,1743479435352,-1403.57221121,0.0005,120]
[356946627,1743479435362,-224.4186147,0.0005,30]
[356946628,1743479435372,-1409.35,0.0005,120]
[356946629,1743479435382,-210.82508448,0.0005,120]
[356946630,1743479435392,-380.84425162,0.0005,120]
[356946631,1743479435402,-153.07,0.00050036,2]
[356946632,1743479435412,-784.0,0.00050142,2]
[356946633,1743479435422,-157.83,0.000502,48]
[356946634,1743479435432,-157.83,0.000502,48]
[356946635,1743479435442,-157.83,0.000502,48]
[356946636,1743479435452,-157.83,0.000502,48]
[356946637,1743479435462,-157.83,0.000502,48]
[356946638,1743479435472,-157.83,0.000502,48]
[356946639,1743479435482,-157.83,0.000502,48]
[356946640,1743479435492,-157.83,0.000502,48]
[356946641,1743479435502,-157.83,0.000502,48]
[356946642,1743479435512,-157.83,0.000502,48]
[356946643,1743479435522,-157.83,0.000502,48]
[356946644,1743479435532,-157.83,0.000502,48]
[356946645,1743479435541,-157.83,0.000502,48]
[356946646,1743479435657,-157.83,0.000502,48]
[356946647,1743479435667,-157.83,0.000502,48]
[356946648,1743479435677,-157.83,0.000502,48]
[356946649,1743479435686,-157.83,0.000502,48]
[356946650,1743479435696,-157.83,0.000502,48]
[356946651,1743479435707,-157.83,0.000502,48]
[356946652,1743479435716,-157.83,0.000502,48]
[356946653,1743479435726,-157.83,0.000502,48]
[356946654,1743479435735,-157.83,0.000502,48]
[356946655,1743479435746,-157.83,0.000502,48]
[356946656,1743479435755,-157.83,0.000502,48]
[356946657,1743479435765,-2117.35,0.000502,2]
[356946658,1743479435775,-188.0,0.00050384,120]
[356946659,1743479435784,-328.84,0.000504,7]
[356946660,1743479435794,-784.0,0.00050416,2]
[356946661,1743479435803,-784.0,0.0005069,2]
[356946662,1743479435813,-819.50903362,0.00050707,10]
[356946663,1743479435822,-185.7699733,0.00050811,41]
[356946664,1743479435832,-199.08,0.00050844,120]
[356946665,1743479435842,-497.69,0.00050852,2]
[356946666,1743479435851,-784.0,0.00050964,2]
[356946667,1743479435861,-1384.26379796,0.00050997,120]
[356946668,1743479435871,-50000.0,0.00051,51]
[356946669,1743479435881,-20438.1706885,0.00051,120]
[356946670,1743479435891,-1381.1988,0.00051,120]
[356946671,1743479435900,-705.970001,0.00051,120]
[356946672,1743479435910,-1000.0,0.00051,120]
[356946673,1743479435919,-7452.2729476,0.00051045,2]
[356946674,1743479435929,-2866.89,0.0005108,90]
[356946675,1743479435939,-784.0,0.00051238,2]
[356946676,1743479435949,-588.29085001,0.00051304,7]
[356946677,1743479435959,-500.0,0.0005137,120]
[356946678,1743479435968,-500.0,0.0005137,120]
[356946679,1743479435978,-500.0,0.0005137,120]
[356946680,1743479435988,-500.0,0.0005137,120]
[356946681,1743479435997,-500.0,0.0005137,120]
[356946682,1743479436007,-500.0,0.0005137,120]
[356946683,1743479436017,-500.0,0.0005137,120]
[356946684,1743479436027,-500.0,0.0005137,120]
[356946685,1743479436036,-500.0,0.0005137,120]
[356946686,1743479436046,-500.0,0.0005137,120]
[356946687,1743479436056,-608.68072886,0.0005137,120]
[356946688,1743479436065,-500.0,0.0005137,120]
[356946689,1743479436075,-500.0,0.0005137,120]
[356946690,1743479436085,-500.0,0.0005137,120]
[356946691,1743479436094,-500.0,0.0005137,120]
[356946692,1743479436104,-500.0,0.0005137,120]
[356946693,1743479436114,-500.0,0.0005137,120]
[356946694,1743479436124,-500.0,0.0005137,120]
[356946695,1743479436134,-500.0,0.0005137,120]
[356946696,1743479436144,-500.0,0.0005137,120]
[356946697,1743479436153,-500.0,0.0005137,120]
[356946698,1743479436163,-500.0,0.0005137,120]
[356946699,1743479436173,-500.0,0.0005137,120]
[356946700,1743479436183,-500.0,0.0005137,120]
[356946701,1743479436193,-500.0,0.0005137,120]
[356946702,1743479436203,-500.0,0.0005137,120]
[356946703,1743479436213,-500.0,0.0005137,120]
[356946704,1743479436223,-499.99999999,0.0005137,120]
[356946705,1743479436233,-269.0,0.00051399,120]
[356946706,1743479436243,-214710.0,0.00051399,120]
[356946707,1743479436252,-152.50449026,0.000514,120]
[356946708,1743479436262,-9420.88475785,0.000514,15]
[356946709,1743479436271,-277.13281076,0.000514,2]
[356946710,1743479436281,-5902.2198629,0.00051465,2]
[356946711,1743479436291,-4352.1667782,0.00051465,2]
[356946712,1743479436301,-3306.9633457,0.00051465,2]
[356946713,1743479436311,-2620.000809,0.00051465,2]
[356946714,1743479436321,-1933.0382724,0.00051465,2]
[356946715,1743479436331,-189.0,0.00051479,120]
[356946716,1743479436341,-153.27,0.0005149,120]
[356946717,1743479436350,-150.0,0.00051499,120]
[356946718,1743479436360,-150.0,0.00051499,120]
[356946719,1743479436370,-150.0,0.00051499,120]
[356946720,1743479436380,-150.0,0.00051499,120]
[356946721,1743479436390,-150.0,0.00051499,120]
[356946722,1743479436400,-1076.083461,0.00051499,30]
[356946723,1743479436411,-412.85,0.000515,2]
[356946724,1743479436421,-373.12,0.000515,2]
[356946725,1743479436431,-1691.89,0.000515,2]
[356946726,1743479436441,-2729218.1,0.000515,120]
[356946727,1743479436450,-680.0,0.000515,90]
[356946728,1743479436459,-784.0,0.00051512,2]
[356946729,1743479436469,-650.0,0.000516,90]
[356946730,1743479436480,-157.04505048,0.000516,120]
[356946731,1743479436489,-157.04505048,0.000516,120]
[356946732,1743479436499,-157.04505048,0.000516,120]
[356946733,1743479436509,-157.04,0.000516,120]
[356946734,1743479436518,-162.86153383,0.000516,120]
[356946735,1743479436527,-162.86153383,0.000516,120]
[356946736,1743479436536,-162.86153383,0.000516,120]
[356946737,1743479436546,-162.86153383,0.000516,120]
[356946738,1743479436555,-774.99421428,0.000516,120]
[356946739,1743479436565,-774.99421428,0.000516,120]
[356946740,1743479436575,-774.99421428,0.000516,120]
[356946741,1743479436585,-774.99421428,0.000516,120]
[356946742,1743479436594,-774.99421428,0.000516,120]
[356946743,1743479436604,-774.99421428,0.000516,120]
[356946744,1743479436614,-774.99421428,0.000516,120]
[356946745,1743479436626,-774.99421428,0.000516,120]
[356946746,1743479436635,-774.99421428,0.000516,120]
[356946747,1743479436645,-774.99421428,0.000516,120]
[356946748,1743479436655,-774.99421428,0.000516,120]
[356946749,1743479436665,-774.99421428,0.000516,120]
[356946750,1743479436675,-774.99421428,0.000516,120]
[356946751,1743479436684,-774.99421428,0.000516,120]
[356946752,1743479436693,-774.99421428,0.000516,120]
[356946753,1743479436703,-774.99421428,0.000516,120]
[356946754,1743479436713,-774.99421428,0.000516,120]
[356946755,1743479436723,-774.99421428,0.000516,120]
[356946756,1743479436732,-774.99421428,0.000516,120]
[356946757,1743479436741,-774.99,0.000516,120]
[356946758,1743479436750,-1808.31983333,0.000516,120]
[356946759,1743479436760,-1808.31983333,0.000516,120]
[356946760,1743479436769,-1808.31983333,0.000516,120]
[356946761,1743479436779,-1808.31983333,0.000516,120]
[356946762,1743479436789,-1808.31983333,0.000516,120]
[356946763,1743479436799,-1808.31983333,0.000516,120]
[356946764,1743479436808,-1808.31983333,0.000516,120]
[356946765,1743479436818,-1808.31983333,0.000516,120]
[356946766,1743479436828,-1808.31983333,0.000516,120]
[356946767,1743479436837,-1808.31983333,0.000516,120]
[356946768,1743479436847,-325.90058931,0.000516,120]
[356946769,1743479436856,-325.90058931,0.000516,120]
[356946770,1743479436865,-325.90058931,0.000516,120]
[356946771,1743479436875,-325.90058931,0.000516,120]
[356946772,1743479436884,-325.90058931,0.000516,120]
[356946773,1743479436894,-325.90058931,0.000516,120]
[356946774,1743479436904,-325.90058931,0.000516,120]
[356946775,1743479436913,-325.90058931,0.000516,120]
[356946776,1743479436923,-325.90058931,0.000516,120]
[356946777,1743479437018,-325.90058931,0.000516,120]
[356946778,1743479437028,-325.90058931,0.000516,120]
[356946779,1743479437038,-325.90058931,0.000516,120]
[356946780,1743479437047,-325.90058931,0.000516,120]
[356946781,1743479437056,-325.90058931,0.000516,120]
[356946782,1743479437066,-325.90058931,0.000516,120]
[356946783,1743479437075,-325.90058931,0.000516,120]
[356946784,1743479437085,-325.90058931,0.000516,120]
[356946785,1743479437095,-325.90058931,0.000516,120]
[356946786,1743479437105,-325.90058931,0.000516,120]
[356946787,1743479437114,-325.9,0.000516,120]
[356946788,1743479437125,-760.43470838,0.000516,120]
[356946789,1743479437134,-760.43470838,0.000516,120]
[356946790,1743479437144,-760.43470838,0.000516,120]
[356946791,1743479437153,-760.43470838,0.000516,120]
[356946792,1743479437164,-760.43470838,0.000516,120]
[356946793,1743479437174,-760.43470838,0.000516,120]
[356946794,1743479437183,-760.43470838,0.000516,120]
[356946795,1743479437192,-760.43470838,0.000516,120]
[356946796,1743479437202,-760.43470838,0.000516,120]
[356946797,1743479437211,-760.43470838,0.000516,120]
[356946798,1743479437220,-244.69962984,0.00051627,120]
[356946799,1743479437230,-189.80698299,0.00051628,16]
[356946800,1743479437240,-1808.31983333,0.0005166,120]
[356946801,1743479437250,-760.43470838,0.0005166,120]
[356946802,1743479437259,-150.0,0.00051699,120]
[356946803,1743479437274,-35061.2,0.000517,44]
[356946804,1743479437284,-162.86153383,0.00051707,120]
[356946805,1743479437293,-786.79711359,0.00051785,2]
[356946806,1743479437303,-4000.0,0.000518,18]
[356946807,1743479437313,-439.05873531,0.00051801,30]
[356946808,1743479437323,-376.32,0.000519,2]
[356946809,1743479437332,-5000.0,0.000519,18]
[356946810,1743479437342,-947.23,0.00051998,120]
[356946811,1743479437352,-1000.0,0.00051998,120]
[356946812,1743479437361,-1000.0,0.00051998,120]
[356946813,1743479437371,-1000.0,0.00051998,120]
[356946814,1743479437380,-1000.0,0.00051998,120]
[356946815,1743479437389,-50000.0,0.00052,52]
[356946816,1743479437401,-700.0,0.00052,120]
[356946817,1743479437410,-1000.0,0.00052,120]
[356946818,1743479437420,-600.0,0.00052,90]
[356946819,1743479437430,-3300.0,0.00052,120]
[356946820,1743479437440,-15081.0,0.00052,120]
[356946821,1743479437450,-151.0,0.00052,120]
[356946822,1743479437459,-1808.31983333,0.00052076,120]
[356946823,1743479437468,-760.43470838,0.00052076,120]
[356946824,1743479437479,-2117.35,0.000523,2]
[356946825,1743479437489,-795.00510223,0.00052345,30]
[356946826,1743479437499,-594.1088553,0.00052356,120]
[356946827,1743479437508,-1808.31983333,0.00052492,120]
[356946828,1743479437518,-760.43470838,0.00052492,120]
[356946829,1743479437528,-376.32,0.000526,2]
[356946831,1743479437537,-412.85,0.000526,2]
[356946832,1743479437546,-373.12,0.000526,2]
[356946833,1743479437555,-1691.89,0.000526,2]
[356946834,1743479437565,-162.86153383,0.0005263,120]
[356946835,1743479437574,-157.83,0.000527,51]
[356946836,1743479437585,-157.83,0.000527,51]
[356946837,1743479437594,-157.83,0.000527,51]
[356946838,1743479437608,-157.83,0.000527,51]
[356946839,1743479437631,-157.83,0.000527,51]
[356946840,1743479437649,-157.83,0.000527,51]
[356946841,1743479437670,-157.83,0.000527,51]
[356946842,1743479437684,-157.83,0.000527,51]
[356946843,1743479437704,-157.83,0.000527,51]
[356946844,1743479437723,-157.83,0.000527,51]
[356946845,1743479437741,-157.83,0.000527,51]
[356946846,1743479437761,-157.83,0.000527,51]
[356946847,1743479437779,-157.83,0.000527,51]
[356946848,1743479437798,-157.83,0.000527,51]
[356946849,1743479437812,-157.83,0.000527,51]
[356946850,1743479437831,-157.83,0.000527,51]
[356946851,1743479437845,-157.83,0.000527,51]
[356946852,1743479437860,-157.83,0.000527,51]
[356946853,1743479437876,-157.83,0.000527,51]
[356946854,1743479437890,-157.83,0.000527,51]
[356946855,1743479437905,-157.83,0.000527,51]
[356946856,1743479437920,-157.83,0.000527,51]
[356946857,1743479437935,-157.83,0.000527,51]
[356946858,1743479437950,-157.83,0.000527,51]
[356946859,1743479437965,-700.0,0.000528,100]
[356946860,1743479437988,-233.51691653,0.00052884,30]
[356946861,1743479438003,-1000.0,0.000529,19]
[356946862,1743479438018,-1808.31983333,0.00052907,120]
[356946863,1743479438033,-760.43470838,0.00052907,120]
[356946864,1743479438047,-2802.1136935,0.00052964,2]
[356946865,1743479438063,-150.0,0.00052999,120]
[356946866,1743479438079,-50000.0,0.00053,53]
[356946867,1743479438095,-6000.0,0.00053,120]
[356946868,1743479438111,-400.0,0.00053,120]
[356946872,1743479438127,-925.99,0.00053,120]
[356946876,1743479438144,-500000.0,0.00053,120]
[356946878,1743479438160,-185.7699733,0.00053018,50]
[356946880,1743479438176,-497.69,0.00053116,2]
[356946881,1743479438191,-376.32,0.000533,2]
[356946882,1743479438207,-412.85,0.000533,2]
[356946883,1743479438224,-373.12,0.000533,2]
[356946884,1743479438240,-1691.89,0.000533,2]
[356946885,1743479438256,-1808.31983333,0.00053323,120]
[356946886,1743479438272,-760.43470838,0.00053323,120]
[356946887,1743479438293,-151.12,0.00053425,120]
[356946888,1743479438309,-299.0,0.00053436,30]
[356946889,1743479438324,-1246.0757358,0.00053463,2]
[356946890,1743479438341,-1000.0,0.00053472,10]
[356946891,1743479438357,-150.0,0.00053499,120]
[356946892,1743479438373,-500000.0,0.000535,120]
[356946893,1743479438389,-162.86153383,0.00053553,120]
[356946894,1743479438403,-1808.31983333,0.00053738,120]
[356946895,1743479438418,-760.43470838,0.00053738,120]
[356946896,1743479438433,-204.55,0.000539,120]
[356946897,1743479438447,-299.0,0.00053987,30]
[356946898,1743479438463,-150.0,0.00053999,120]
[356946899,1743479438477,-50000.0,0.00054,54]
[356946900,1743479438493,-600.0,0.00054,120]
[356946901,1743479438508,-162.53286701,0.00054,120]
[356946902,1743479438523,-500000.0,0.00054,120]
[356946903,1743479438537,-376.32,0.000541,2]
[356946904,1743479438553,-412.85,0.000541,2]
[356946905,1743479438567,-373.12,0.000541,2]
[356946906,1743479438713,-1691.89,0.000541,2]
[356946907,1743479438723,-2117.35,0.000541,2]
[356946908,1743479438733,-1808.31983333,0.00054154,120]
[356946909,1743479438743,-760.43470838,0.00054154,120]
[356946910,1743479438754,-500.0,0.00054164,120]
[356946911,1743479438765,-509.08372767,0.00054296,60]
[356946912,1743479438775,-150.0,0.000543,120]
[356946913,1743479438784,-1252.0606088,0.00054463,2]
[356946914,1743479438794,-559.1131992,0.00054463,2]
[356946915,1743479438804,-162.86153383,0.00054477,120]
[356946916,1743479438815,-150.0,0.00054499,120]
[356946917,1743479438827,-491.81911343,0.000545,120]
[356946918,1743479438837,-5000.0,0.000545,120]
[356946919,1743479438847,-500000.0,0.000545,120]
[356946920,1743479438857,-2000.0,0.0005452,3]
[356946921,1743479438867,-2005.5567,0.0005452,3]
[356946922,1743479438876,-299.0,0.00054538,30]
[356946923,1743479438886,-1808.31983333,0.00054569,120]
[356946924,1743479438897,-760.43470838,0.00054569,120]
[356946925,1743479438907,-500.0,0.00054583,60]
[356946926,1743479438918,-5983.72,0.000546,8]
[356946927,1743479438929,-500.0,0.00054712,120]
[356946928,1743479438939,-666.0,0.00054739,120]
[356946929,1743479438949,-666.0,0.00054739,120]
[356946930,1743479438958,-666.0,0.00054739,120]
[356946931,1743479438968,-497.33950393,0.00054739,120]
[356946932,1743479438977,-400.0,0.0005477,7]
[356946933,1743479438986,-150.0,0.00054793,120]
[356946934,1743479438995,-168.25,0.00054794,30]
[356946935,1743479439005,-512.03898491,0.00054794,120]
[356946936,1743479439015,-500.0,0.00054794,120]
[356946937,1743479439025,-158.884022,0.00054794,120]
[356946938,1743479439035,-501.86280549,0.00054794,120]
[356946939,1743479439045,-500.0,0.00054794,120]
[356946940,1743479439055,-505.96486989,0.00054794,120]
[356946941,1743479439065,-500.0,0.00054794,120]
[356946942,1743479439075,-500.0,0.00054794,120]
[356946943,1743479439084,-500.0,0.00054794,120]
[356946944,1743479439094,-500.82089857,0.00054794,120]
[356946945,1743479439103,-531.12290528,0.00054794,120]
[356946946,1743479439112,-452.90489812,0.00054794,120]
[356946947,1743479439121,-500.0,0.00054794,120]
[356946948,1743479439131,-534.09783181,0.00054794,120]
[356946949,1743479439140,-454.25800597,0.00054794,120]
[356946950,1743479439150,-501.1505207,0.00054794,120]
[356946951,1743479439159,-500.0,0.00054794,120]
[356946952,1743479439168,-500.0,0.00054794,120]
[356946953,1743479439179,-500.0,0.00054794,120]
[356946954,1743479439190,-177.03844362,0.00054794,120]
[356946955,1743479439201,-304.13281409,0.00054794,120]
[356946956,1743479439214,-500.0,0.00054794,120]
[356946957,1743479439224,-577.49837569,0.00054794,120]
[356946958,1743479439234,-501.69089682,0.00054794,120]
[356946959,1743479439243,-503.13629645,0.00054794,120]
[356946960,1743479439253,-500.0,0.00054794,120]
[356946961,1743479439262,-500.0,0.00054794,120]
[356946962,1743479439272,-500.0,0.00054794,3]
[356946963,1743479439281,-500.0,0.00054794,120]
[356946964,1743479439291,-500.0,0.00054794,120]
[356946965,1743479439301,-500.0,0.00054794,120]
[356946966,1743479439310,-500.0,0.00054794,120]
[356946967,1743479439319,-295.10177899,0.00054794,120]
[356946968,1743479439329,-501.96089991,0.00054794,120]
[356946969,1743479439339,-500.0,0.00054794,120]
[356946970,1743479439350,-500.0,0.00054794,120]
[356946971,1743479439359,-532.21947234,0.00054794,120]
[356946972,1743479439368,-500.0,0.00054794,120]
[356946973,1743479439377,-503.02709198,0.00054794,120]
[356946974,1743479439387,-500.0,0.00054794,120]
[356946975,1743479439396,-500.0,0.00054794,120]
[356946976,1743479439405,-500.0,0.00054794,120]
[356946977,1743479439415,-500.0,0.00054794,120]
[356946978,1743479439426,-500.0,0.00054794,120]
[356946979,1743479439435,-500.0,0.00054794,120]
[356946980,1743479439445,-500.0,0.00054794,120]
[356946981,1743479439454,-500.0,0.00054794,120]
[356946982,1743479439463,-500.0,0.00054794,120]
[356946983,1743479439473,-500.0,0.00054794,120]
[356946984,1743479439482,-500.0,0.00054794,120]
[356946985,1743479439492,-500.0,0.00054794,120]
[356946986,1743479439501,-500.0,0.00054794,120]
[356946987,1743479439511,-500.0,0.00054794,120]
[356946988,1743479439520,-500.0,0.00054794,120]
[356946989,1743479439529,-500.0,0.00054794,120]
[356946990,1743479439539,-519.00299337,0.00054794,120]
[356946991,1743479439548,-500.0,0.00054794,120]
[356946992,1743479439558,-500.0,0.00054794,120]
[356946993,1743479439568,-500.0,0.00054794,120]
[356946994,1743479439577,-500.0,0.00054794,120]
[356946995,1743479439587,-150.70449964,0.00054794,120]
[356946996,1743479439598,-491.72041382,0.00054794,120]
[356946997,1743479439608,-500.0,0.00054794,120]
[356946998,1743479439619,-500.0,0.00054794,120]
[356946999,1743479439632,-500.0,0.00054794,120]
[356947000,1743479439641,-500.0,0.00054794,120]
[356947001,1743479439651,-500.0,0.00054794,120]
[356947002,1743479439660,-5022.68068167,0.00054794,120]
[356947003,1743479439670,-500.0,0.00054794,120]
[356947004,1743479439681,-500.0,0.00054794,120]
[356947005,1743479439692,-500.0,0.00054794,120]
[356947007,1743479439702,-503.90940265,0.00054794,120]
[356947009,1743479439711,-500.0,0.00054794,120]
[356947010,1743479439720,-500.0,0.00054794,120]
[356947011,1743479439729,-504.38866135,0.00054794,120]
[356947012,1743479439740,-510.33137919,0.00054794,120]
[356947014,1743479439749,-507.86020833,0.00054794,120]
[356947016,1743479439759,-500.0,0.00054794,120]
[356947019,1743479439768,-500.0,0.00054794,120]
[356947022,1743479439779,-500.0,0.00054794,120]
[356947024,1743479439789,-500.0,0.00054794,120]
[356947026,1743479439799,-500.0,0.00054794,120]
[356947029,1743479439808,-500.0,0.00054794,120]
[356947031,1743479439817,-500.0,0.00054794,120]
[356947033,1743479439827,-500.0,0.00054794,120]
[356947035,1743479439837,-500.0,0.00054794,120]
[356947037,1743479439846,-505.87694224,0.00054794,120]
[356947038,1743479439856,-500.0,0.00054794,120]
[356947039,1743479439867,-506.53966494,0.00054794,120]
[356947040,1743479439876,-500.0,0.00054794,120]
[356947041,1743479439886,-500.0,0.00054794,120]
[356947042,1743479439897,-500.0,0.00054794,120]
[356947043,1743479439907,-500.0,0.00054794,120]
[356947044,1743479439919,-500.0,0.00054794,120]
[356947045,1743479439929,-502.95160956,0.00054794,120]
[356947046,1743479439940,-513.74277368,0.00054794,120]
[356947047,1743479439950,-500.0,0.00054794,30]
[356947048,1743479439961,-500.0,0.00054794,120]
[356947049,1743479439971,-500.0,0.00054794,120]
[356947050,1743479439980,-513.1855797,0.00054794,120]
[356947051,1743479439990,-500.0,0.00054794,120]
[356947052,1743479440000,-500.0,0.00054794,120]
[356947053,1743479440010,-506.39825796,0.00054794,120]
[356947054,1743479440020,-500.0,0.00054794,120]
[356947055,1743479440030,-500.0,0.00054794,120]
[356947056,1743479440041,-500.0,0.00054794,120]
[356947057,1743479440050,-500.0,0.00054794,120]
[356947058,1743479440059,-500.0,0.00054794,120]
[356947059,1743479440069,-500.0,0.00054794,120]
[356947060,1743479440078,-500.0,0.00054794,120]
[356947061,1743479440088,-500.0,0.00054794,120]
[356947062,1743479440097,-500.0,0.00054794,120]
[356947063,1743479440106,-500.0,0.00054794,120]
[356947064,1743479440116,-500.0,0.00054794,120]
[356947065,1743479440126,-500.0,0.00054794,120]
[356947066,1743479440136,-500.0,0.00054794,120]
[356947067,1743479440145,-500.0,0.00054794,120]
[356947068,1743479440154,-500.0,0.00054794,120]
[356947069,1743479440163,-500.0,0.00054794,120]
[356947070,1743479440172,-500.0,0.00054794,120]
[356947071,1743479440181,-500.0,0.00054794,120]
[356947072,1743479440190,-500.0,0.00054794,120]
[356947073,1743479440200,-500.0,0.00054794,120]
[356947074,1743479440209,-500.0,0.00054794,120]
[356947075,1743479440218,-500.0,0.00054794,120]
[356947076,1743479440227,-500.0,0.00054794,120]
[356947077,1743479440236,-155.95346649,0.00054794,120]
[356947078,1743479440246,-501.64983737,0.00054794,120]
[356947079,1743479440254,-500.0,0.00054794,120]
[356947080,1743479440263,-500.0,0.00054794,120]
[356947081,1743479440274,-500.0,0.00054794,120]
[356947082,1743479440283,-568.4705521,0.00054794,120]
[356947083,1743479440294,-500.0,0.00054794,120]
[356947084,1743479440304,-500.0,0.00054794,120]
[356947085,1743479440315,-500.0,0.00054794,120]
[356947086,1743479440326,-500.0,0.00054794,120]
[356947087,1743479440336,-500.0,0.00054794,120]
[356947088,1743479440345,-500.0,0.00054794,120]
[356947089,1743479440355,-501.38980598,0.00054794,120]
[356947090,1743479440364,-502.83738568,0.00054794,120]
[356947091,1743479440373,-500.0,0.00054794,120]
[356947092,1743479440475,-508.46519457,0.00054794,120]
[356947093,1743479440484,-500.0,0.00054794,120]
[356947094,1743479440494,-500.0,0.00054794,120]
[356947095,1743479440503,-500.0,0.00054794,120]
[356947096,1743479440514,-500.0,0.00054794,120]
[356947097,1743479440525,-500.0,0.00054794,120]
[356947098,1743479440534,-500.0,0.00054794,120]
[356947099,1743479440544,-500.0,0.00054794,120]
[356947100,1743479440554,-500.0,0.00054794,120]
[356947101,1743479440564,-508.01173233,0.00054794,120]
[356947102,1743479440574,-500.0,0.00054794,120]
[356947103,1743479440584,-504.80738914,0.00054794,30]
[356947104,1743479440595,-506.91668433,0.00054794,120]
[356947105,1743479440604,-500.0,0.00054794,120]
[356947106,1743479440614,-500.0,0.00054794,120]
[356947107,1743479440628,-500.0,0.00054794,120]
[356947108,1743479440637,-501.8276734,0.00054794,120]
[356947109,1743479440648,-500.0,0.00054794,120]
[356947110,1743479440657,-500.0,0.00054794,120]
[356947111,1743479440669,-507.13010384,0.00054794,120]
[356947112,1743479440679,-500.0,0.00054794,120]
[356947113,1743479440688,-502.17596615,0.00054794,120]
[356947114,1743479440698,-500.0,0.00054794,120]
[356947115,1743479440708,-500.0,0.00054794,120]
[356947116,1743479440717,-500.0,0.00054794,120]
[356947117,1743479440727,-500.0,0.00054794,120]
[356947118,1743479440736,-500.0,0.00054794,120]
[356947119,1743479440746,-500.0,0.00054794,120]
[356947120,1743479440756,-500.0,0.00054794,120]
[356947121,1743479440765,-500.0,0.00054794,120]
[356947122,1743479440774,-500.0,0.00054794,120]
[356947123,1743479440783,-500.0,0.00054794,120]
[356947124,1743479440793,-500.0,0.00054794,120]
[356947125,1743479440802,-510.52080382,0.00054794,120]
[356947126,1743479440811,-507.47836167,0.00054794,120]
[356947127,1743479440820,-529.18493566,0.00054794,120]
[356947128,1743479440829,-518.41253849,0.00054794,120]
[356947129,1743479440838,-500.0,0.00054794,120]
[356947130,1743479440847,-500.0,0.00054794,120]
[356947131,1743479440856,-500.0,0.00054794,120]
[356947132,1743479440866,-500.0,0.00054794,120]
[356947133,1743479440875,-500.0,0.00054794,120]
[356947134,1743479440884,-500.0,0.00054794,120]
[356947135,1743479440893,-513.55952892,0.00054794,120]
[356947136,1743479440902,-500.0,0.00054794,120]
[356947137,1743479440911,-500.0,0.00054794,120]
[356947138,1743479440920,-500.0,0.00054794,120]
[356947139,1743479440929,-504.94984026,0.00054794,120]
[356947140,1743479440938,-500.0,0.00054794,120]
[356947141,1743479440947,-500.0,0.00054794,120]
[356947142,1743479440957,-500.0,0.00054794,120]